fUST/lending_fUST_20240110
["ID","MTS","AMOUNT","RATE_DAILY","PERIOD"]
[311075483,1704895845583,-275.49755677,0.00029863,2]
[311075484,1704895845593,-1239.96,0.00029863,2]
[311075485,1704895845602,-5148.99,0.00029863,2]
[311075486,1704895845611,-332.82,0.00029863,2]
[311075487,1704895845620,-500.0,0.00029863,2]
[311075488,1704895845630,-246.74,0.00029863,2]
[311075489,1704895845640,-500.0,0.00029863,2]
[311075490,1704895845649,-500.0,0.00029863,2]
[311075491,1704895845658,-500.0,0.00029863,2]
[311075492,1704895845668,-781.03,0.00029863,2]
[311075493,1704895845677,-3559.94,0.00029863,2]
[311075494,1704895845687,-574.37,0.00029863,2]
[311075495,1704895845696,-1208.23,0.00029863,2]
[311075496,1704895845706,-703.34,0.00029863,2]
[311075497,1704895845716,-1751.28,0.00029863,2]
[311075498,1704895845726,-359.90512707,0.00029998,2]
[311075499,1704895845736,-4999.99,0.0003,2]
[311075500,1704895845745,-5000.0,0.0003,2]
[311075501,1704895845754,-5000.0,0.0003,2]
[311075502,1704895845763,-5000.0,0.0003,2]
[311075503,1704895845772,-5000.0,0.0003,2]
[311075504,1704895845781,-5000.0,0.0003,2]
[311075505,1704895845790,-5000.0,0.0003,2]
[311075506,1704895845799,-745.10434617,0.0003,2]
[311075507,1704895845814,-4254.93565383,0.0003,2]
[311075508,1704895845823,-5000.0,0.0003,2]
[311075509,1704895845832,-5000.0,0.0003,2]
[311075510,1704895845841,-5000.0,0.0003,2]
[311075511,1704895845852,-5000.0,0.0003,2]
[311075512,1704895845862,-5000.0,0.0003,2]
[311075513,1704895845872,-5000.0,0.0003,2]
[311075515,1704895845883,-5000.0,0.0003,2]
[311075516,1704895845892,-5000.0,0.0003,2]
[311075517,1704895845902,-5000.0,0.0003,2]
[311075518,1704895845911,-5000.0,0.0003,2]
[311075519,1704895845921,-5000.0,0.0003,2]
[311075520,1704895845931,-5000.0,0.0003,2]
[311075522,1704895845940,-5000.0,0.0003,2]
[311075523,1704895845950,-5000.0,0.0003,2]
[311075524,1704895845959,-5000.0,0.0003,2]
[311075525,1704895845968,-686.6335406,0.0003,4]
[311075526,1704895845977,-5000.0,0.0003,2]
[311075527,1704895845988,-236.52252731,0.0003,7]
[311075528,1704895845998,-5000.0,0.0003,2]
[311075529,1704895846007,-961.93,0.0003,2]
[311075530,1704895846017,-639.65046808,0.0003,4]
[311075531,1704895846027,-243.77594457,0.0003,4]
[311075532,1704895846037,-463.38099934,0.0003,4]
[311075533,1704895846047,-6973.85683356,0.0003,4]
[311075534,1704895846056,-154.87609912,0.0003,2]
[311075535,1704895846065,-479.59080699,0.0003,4]
[311075536,1704895846075,-27072.04395763,0.0003,4]
[311075537,1704895846084,-2754.83813333,0.0003,2]
[311075538,1704895846093,-2188.52939093,0.0003,2]
[311075539,1704895846102,-32780.12501289,0.0003,10]
[311075540,1704895846111,-1475.70472705,0.0003,12]
[311075541,1704895846120,-18548.99519009,0.0003,2]
[311075542,1704895846130,-698.81535711,0.0003,2]
[311075543,1704895846139,-203.0,0.0003,2]
[311075544,1704895846148,-4451.60098697,0.0003,4]
[311075545,1704895846157,-197.35265213,0.0003013,2]
[311075546,1704895846166,-500.0,0.00030136,2]
[311075547,1704895846175,-500.0,0.00030136,2]
[311075548,1704895846184,-500.0,0.00030136,2]
[311075549,1704895846193,-500.0,0.00030136,2]
[311075550,1704895846203,-597.76,0.00030136,2]
[311075551,1704895846212,-633.29,0.00030136,2]
[311075552,1704895846221,-9411.07,0.00030136,2]
[311075554,1704895846231,-500.0,0.00030136,2]
[311075555,1704895846243,-500.0,0.00030136,2]
[311075556,1704895846252,-1184.78,0.00030136,2]
[311075557,1704895846261,-150.0,0.00030136,2]
[311075558,1704895846270,-500.0,0.00030136,2]
[311075559,1704895846279,-602.54,0.00030136,2]
[311075560,1704895846288,-500.0,0.00030136,2]
[311075562,1704895846298,-500.0,0.00030136,2]
[311075564,1704895846308,-1239.96,0.00030136,2]
[311075566,1704895846317,-5148.99,0.00030136,2]
[311075567,1704895846326,-500.0,0.00030136,2]
[311075568,1704895846336,-500.0,0.00030136,2]
[311075569,1704895846346,-500.0,0.00030136,2]
[311075571,1704895846355,-500.0,0.00030136,2]
[311075572,1704895846365,-781.03,0.00030136,2]
[311075573,1704895846374,-3559.94,0.00030136,2]
[311075574,1704895846383,-1208.23,0.00030136,2]
[311075575,1704895846392,-703.34,0.00030136,2]
[311075576,1704895846402,-1751.28,0.00030136,2]
[311075577,1704895846413,-3180.8731799,0.00030137,2]
[311075578,1704895846422,-155.0,0.00030137,2]
[311075579,1704895846431,-150.8642222,0.00030269,7]
[311075580,1704895846440,-500.0,0.0003041,2]
[311075581,1704895846450,-500.0,0.0003041,2]
[311075582,1704895846460,-500.0,0.0003041,2]
[311075583,1704895846469,-500.0,0.0003041,2]
[311075584,1704895846479,-597.76,0.0003041,2]
[311075585,1704895846494,-633.29,0.0003041,2]
[311075586,1704895846505,-9411.07,0.0003041,2]
[311075587,1704895846515,-500.0,0.0003041,2]
[311075588,1704895846524,-249.9,0.0003041,2]
[311075589,1704895846534,-1184.78,0.0003041,2]
[311075590,1704895846543,-500.0,0.0003041,2]
[311075591,1704895846553,-602.54,0.0003041,2]
[311075592,1704895846563,-500.0,0.0003041,2]
[311075593,1704895846572,-500.0,0.0003041,2]
[311075594,1704895846581,-1239.96,0.0003041,2]
[311075595,1704895846590,-5148.99,0.0003041,2]
[311075596,1704895846600,-500.0,0.0003041,2]
[311075597,1704895846610,-500.0,0.0003041,2]
[311075598,1704895846620,-500.0,0.0003041,2]
[311075599,1704895846630,-500.0,0.0003041,2]
[311075600,1704895846639,-781.03,0.0003041,2]
[311075601,1704895846648,-3559.94,0.0003041,2]
[311075602,1704895846658,-1208.23,0.0003041,2]
[311075603,1704895846667,-703.34,0.0003041,2]
[311075604,1704895846676,-1751.28,0.0003041,2]
[311075605,1704895846685,-500.0,0.00030684,2]
[311075606,1704895846695,-500.0,0.00030684,2]
[311075607,1704895846704,-500.0,0.00030684,2]
[311075608,1704895846714,-405.72525571,0.00030684,2]
[311075609,1704895846723,-597.76,0.00030684,2]
[311075610,1704895846732,-633.29,0.00030684,2]
[311075611,1704895846747,-9411.07,0.00030684,2]
[311075612,1704895846756,-500.0,0.00030684,2]
[311075613,1704895846765,-1184.78,0.00030684,2]
[311075614,1704895846775,-500.0,0.00030684,2]
[311075615,1704895846785,-602.54,0.00030684,2]
[311075616,1704895846794,-500.0,0.00030684,2]
[311075617,1704895846803,-500.0,0.00030684,2]
[311075618,1704895846813,-1239.96,0.00030684,2]
[311075619,1704895846822,-5148.99,0.00030684,2]
[311075620,1704895846830,-500.0,0.00030684,2]
[311075621,1704895846839,-336.31752008,0.00030684,2]
[311075622,1704895846849,-500.0,0.00030684,2]
[311075623,1704895846858,-781.03,0.00030684,2]
[311075624,1704895846867,-3559.94,0.00030684,2]
[311075625,1704895846876,-1208.23,0.00030684,2]
[311075626,1704895846885,-703.34,0.00030684,2]
[311075627,1704895846896,-1751.28,0.00030684,2]
[311075628,1704895846905,-373.66045,0.000308,15]
[311075629,1704895846914,-150.8642222,0.00030887,4]
[311075630,1704895846923,-975.45289076,0.00030887,2]
[311075631,1704895846933,-546.6104323,0.00030887,2]
[311075632,1704895846942,-360.46660273,0.00030887,2]
[311075633,1704895846951,-468.72431833,0.00030887,2]
[311075634,1704895846961,-1607.12457883,0.00030887,2]
[311075635,1704895846970,-500.0,0.00030958,2]
[311075636,1704895846979,-500.0,0.00030958,2]
[311075637,1704895846991,-500.0,0.00030958,2]
[311075638,1704895847000,-597.76,0.00030958,2]
[311075639,1704895847010,-633.29,0.00030958,2]
[311075640,1704895847019,-9411.07,0.00030958,2]
[311075641,1704895847028,-500.0,0.00030958,2]
[311075642,1704895847037,-1184.78,0.00030958,2]
[311075643,1704895847046,-500.0,0.00030958,2]
[311075644,1704895847055,-602.54,0.00030958,2]
[311075645,1704895847064,-500.0,0.00030958,2]
[311075646,1704895847073,-500.0,0.00030958,2]
[311075647,1704895847083,-1239.96,0.00030958,2]
[311075648,1704895847092,-2282.68620122,0.00030958,2]
[311075649,1704895847198,-668.2162891,0.0003,4]
[311075650,1704895847207,-1367.10085788,0.0003,4]
[311075651,1704895847229,-1427.03669554,0.0003,4]
[311075652,1704895847326,-300.0,0.0003,4]
[311075653,1704895847337,-200.0,0.0003,2]
[311075654,1704895847348,-2866.30379878,0.00030958,2]
[311075655,1704895847357,-372.94717787,0.00030958,2]
[311075662,1704895847508,-6948.97,0.00028483,3]
[311075664,1704895847518,-958.04,0.00029789,2]
[311075666,1704895847528,-958.04,0.00029789,2]
[311075668,1704895847538,-958.04,0.00029789,2]
[311075670,1704895847548,-958.04,0.00029789,2]
[311075672,1704895847558,-958.04,0.00029789,2]
[311075674,1704895847567,-958.04,0.00029789,2]
[311075676,1704895847576,-958.04,0.00029789,2]
[311075678,1704895847586,-958.04,0.00029789,2]
[311075680,1704895847595,-958.04,0.00029789,2]
[311075682,1704895847604,-958.04,0.00029789,2]
[311075684,1704895847613,-2447.78536801,0.0003,2]
[311075686,1704895847623,-154.87609912,0.0003,4]
[311075688,1704895847631,-1025.68574779,0.0003,2]
[311075690,1704895847641,-409.80803054,0.0003,2]
[311075692,1704895847650,-127.05282213,0.00030958,2]
[311075694,1704895847659,-500.0,0.00030958,2]
[311075696,1704895847668,-781.03,0.00030958,2]
[311075698,1704895847678,-3559.94,0.00030958,2]
[311075700,1704895847686,-1208.23,0.00030958,2]
[311075702,1704895847695,-703.34,0.00030958,2]
[311075704,1704895847704,-1751.28,0.00030958,2]
[311075706,1704895847713,-155.21749032,0.00030999,4]
[311075708,1704895847722,-50000.0,0.00031091,7]
[311075710,1704895847732,-50000.0,0.00031092,7]
[311075712,1704895847744,-151.0,0.00031184,2]
[311075714,1704895847753,-500.0,0.00031232,2]
[311075716,1704895847762,-276.43717789,0.00031232,2]
[311075718,1704895847772,-500.0,0.00031232,2]
[311075720,1704895847781,-597.76,0.00031232,2]
[311075722,1704895847790,-633.29,0.00031232,2]
[311075724,1704895847799,-9411.07,0.00031232,2]
[311075726,1704895847807,-500.0,0.00031232,2]
[311075728,1704895847816,-1184.78,0.00031232,2]
[311075730,1704895847825,-500.0,0.00031232,2]
[311075732,1704895847834,-602.54,0.00031232,2]
[311075734,1704895847843,-491.48,0.00031232,2]
[311075736,1704895847852,-500.0,0.00031232,2]
[311075738,1704895847862,-1239.96,0.00031232,2]
[311075740,1704895847871,-325.81344228,0.00031232,2]
[311075742,1704895847883,-4823.17655772,0.00031232,2]
[311075744,1704895847892,-500.0,0.00031232,2]
[311075746,1704895847901,-500.0,0.00031232,2]
[311075749,1704895847911,-781.03,0.00031232,2]
[311075750,1704895847920,-3559.94,0.00031232,2]
[311075752,1704895847930,-703.34,0.00031232,2]
[311075755,1704895847939,-1751.28,0.00031232,2]
[311075756,1704895847948,-5000.0,0.00031416,7]
[311075759,1704895847958,-500.0,0.00031506,2]
[311075761,1704895847967,-500.0,0.00031506,2]
[311075763,1704895847976,-597.76,0.00031506,2]
[311075764,1704895847986,-633.29,0.00031506,2]
[311075766,1704895847995,-9411.07,0.00031506,2]
[311075768,1704895848004,-500.0,0.00031506,2]
[311075770,1704895848013,-1184.78,0.00031506,2]
[311075772,1704895848022,-500.0,0.00031506,2]
[311075774,1704895848031,-602.54,0.00031506,2]
[311075776,1704895848040,-500.0,0.00031506,2]
[311075778,1704895848049,-1239.96,0.00031506,2]
[311075780,1704895848058,-5148.99,0.00031506,2]
[311075782,1704895848068,-500.0,0.00031506,2]
[311075784,1704895848077,-379.91875425,0.00031506,2]
[311075786,1704895848086,-781.03,0.00031506,2]
[311075787,1704895848095,-3559.94,0.00031506,2]
[311075788,1704895848105,-703.34,0.00031506,2]
[311075789,1704895848113,-1751.28,0.00031506,2]
[311075790,1704895848122,-155.0,0.00031507,2]
[311075791,1704895848132,-150.8642222,0.00031517,2]
[311075792,1704895848141,-306.3392106,0.00031726,2]
[311075793,1704895848150,-1996.00050368,0.00031742,4]
[311075795,1704895848159,-4776.06737273,0.00031742,4]
[311075796,1704895848169,-367.19316464,0.00031751,2]
[311075798,1704895848178,-1200.0,0.00031753,4]
[311075800,1704895848187,-200.08483639,0.00031753,2]
[311075802,1704895848196,-278.16,0.0003178,2]
[311075804,1704895848205,-500.0,0.0003178,2]
[311075806,1704895848214,-597.76,0.0003178,2]
[311075808,1704895848223,-633.29,0.0003178,2]
[311075810,1704895848233,-9411.07,0.0003178,2]
[311075812,1704895848244,-500.0,0.0003178,2]
[311075814,1704895848254,-1184.78,0.0003178,2]
[311075816,1704895848263,-500.0,0.0003178,2]
[311075818,1704895848274,-602.54,0.0003178,2]
[311075821,1704895848283,-500.58734684,0.0003178,2]
[311075823,1704895848293,-1239.96,0.0003178,2]
[311075825,1704895848303,-5148.99,0.0003178,2]
[311075826,1704895848312,-500.0,0.0003178,2]
[311075827,1704895848322,-781.03,0.0003178,2]
[311075829,1704895848332,-3559.94,0.0003178,2]
[311075831,1704895848341,-703.34,0.0003178,2]
[311075832,1704895848351,-1751.28,0.0003178,2]
[311075833,1704895848360,-638.45555875,0.00031927,2]
[311075834,1704895848369,-474.909299,0.00032,5]
[311075835,1704895848379,-2134.03260025,0.00032,4]
[311075836,1704895848388,-500.0,0.00032054,2]
[311075837,1704895848397,-597.76,0.00032054,2]
[311075838,1704895848406,-633.29,0.00032054,2]
[311075839,1704895848415,-9411.07,0.00032054,2]
[311075840,1704895848425,-500.0,0.00032054,2]
[311075841,1704895848434,-1184.78,0.00032054,2]
[311075842,1704895848444,-500.0,0.00032054,2]
[311075843,1704895848453,-602.54,0.00032054,2]
[311075844,1704895848462,-1239.96,0.00032054,2]
[311075845,1704895848472,-5148.99,0.00032054,2]
[311075846,1704895848481,-500.0,0.00032054,2]
[311075847,1704895848493,-781.03,0.00032054,2]
[311075848,1704895848502,-3559.94,0.00032054,2]
[311075849,1704895848512,-703.34,0.00032054,2]
[311075850,1704895848521,-1751.28,0.00032054,2]
[311075851,1704895848531,-7225.17464422,0.000323,7]
[311075852,1704895848541,-588.95446111,0.00032326,4]
[311075853,1704895848550,-295.97883071,0.00032326,4]
[311075854,1704895848559,-155.0,0.00032326,4]
[311075855,1704895848569,-261.57078139,0.00032327,4]
[311075856,1704895848578,-6044.99209874,0.00032327,4]
[311075857,1704895848587,-8896.51747827,0.00032327,2]
[311075858,1704895848596,-606.20634539,0.00032328,2]
[311075859,1704895848605,-597.76,0.00032328,2]
[311075860,1704895848615,-633.29,0.00032328,2]
[311075861,1704895848624,-9411.07,0.00032328,2]
[311075862,1704895848637,-500.0,0.00032328,2]
[311075863,1704895848647,-1184.78,0.00032328,2]
[311075864,1704895848657,-500.0,0.00032328,2]
[311075865,1704895848667,-602.54,0.00032328,2]
[311075866,1704895848678,-1239.96,0.00032328,2]
[311075867,1704895848689,-5148.99,0.00032328,2]
[311075868,1704895848701,-198.80304887,0.00032328,2]
[311075869,1704895848709,-781.03,0.00032328,2]
[311075870,1704895848718,-3559.94,0.00032328,2]
[311075871,1704895848727,-703.34,0.00032328,2]
[311075872,1704895848737,-1751.28,0.00032328,2]
[311075873,1704895848746,-151.0,0.00032369,2]
[311075874,1704895848754,-620.22153233,0.00032428,2]
[311075875,1704895848763,-10018.64023548,0.00032499,7]
[311075876,1704895848772,-220477.05903764,0.000325,20]
[311076093,1704896964236,-154.8915759,0.00022927,4]
[311076094,1704896964260,-976.0012481,0.00022928,2]
[311076095,1704896964283,-154.8915759,0.00022929,2]
[311076096,1704896964308,-10500.0358078,0.00022929,2]
[311076097,1704896964331,-19828.39990193,0.0002293,2]
[311076098,1704896964354,-5487.16855115,0.00022934,2]
[311076099,1704896964380,-166.666666,0.00022941,2]
[311076100,1704896964404,-169.84217425,0.00023335,2]
[311076101,1704896964427,-4825.68,0.00023426,3]
[311076102,1704896964453,-4021.4,0.00023426,3]
[311076103,1704896964479,-5790.81,0.00023427,3]
[311076104,1704896964502,-251.90248172,0.00023434,2]
[311076105,1704896964526,-162.35098873,0.00023434,2]
[311076106,1704896964549,-182.21765281,0.00023434,2]
[311076107,1704896964572,-299.81806563,0.00023434,2]
[311076108,1704896964596,-314.83802807,0.00023434,2]
[311076109,1704896964620,-183.74257056,0.00023434,2]
[311076110,1704896964643,-4336.63880828,0.00023434,2]
[311076111,1704896964666,-2699.94240879,0.00023435,5]
[311076112,1704896964691,-960.55070757,0.00023435,2]
[311076113,1704896964720,-155.27793956,0.00023435,2]
[311076114,1704896964745,-15388.13791725,0.00023436,2]
[311076115,1704896965255,-6550.26088941,0.00023436,2]
[311076116,1704896965278,-210.816276,0.00023437,2]
[311076117,1704896965300,-9528.59904459,0.00023437,2]
[311076150,1704897032673,-300.0,0.00023437,2]
[311076151,1704897032683,-200.0,0.00023437,2]
[311076152,1704897032693,-15371.40095541,0.00023437,2]
[311076153,1704897032703,-166.666666,0.00023567,2]
[311076154,1704897032712,-2293.16748545,0.0002419,2]
[311076155,1704897032722,-614.01289661,0.00024191,2]
[311076156,1704897032732,-166.666666,0.00024192,2]
[311076157,1704897032742,-154.8915759,0.00024654,4]
[311076158,1704897032752,-814.28959592,0.00024654,2]
[311076159,1704897032763,-174.7410154,0.00024768,2]
[311076160,1704897032773,-166.666666,0.00024818,2]
[311076161,1704897032787,-497.00944952,0.0002498,5]
[311076162,1704897032798,-166.666666,0.00025443,2]
[311076163,1704897032808,-4711.08145103,0.00025998,2]
[311076164,1704897032818,-3000.0,0.00025999,2]
[311076165,1704897032828,-525.91402641,0.00026067,2]
[311076166,1704897032838,-166.666666,0.00026068,2]
[311076167,1704897032847,-733.25771754,0.00027296,2]
[311076168,1704897032858,-9611.75130745,0.00027297,2]
[311076169,1704897032868,-179.36974915,0.00027297,2]
[311076170,1704897032881,-1669.98,0.00027384,3]
[311076171,1704897032891,-19828.39990193,0.00027394,2]
[311076172,1704897032901,-8079.07608641,0.00027394,2]
[311076173,1704897032911,-8927.6,0.00027394,2]
[311076174,1704897032920,-359.90512707,0.00027395,2]
[311076175,1704897032929,-155.38219287,0.00027395,2]
[311076176,1704897032938,-271.84681724,0.00027395,2]
[311076177,1704897032948,-451.57405458,0.00027395,2]
[311076179,1704897032958,-656.73412102,0.00027395,2]
[311076181,1704897032968,-367.65383172,0.00027395,2]
[311076183,1704897032976,-212.49909782,0.00027395,2]
[311076185,1704897032985,-170.38270553,0.00027395,2]
[311076187,1704897032994,-155.29426556,0.00027395,2]
[311076188,1704897033003,-310.29696063,0.00027395,2]
[311076190,1704897033012,-372.64600388,0.00027395,2]
[311076192,1704897033022,-236.22975964,0.00027395,2]
[311076194,1704897033030,-2973.19706542,0.00027395,2]
[311076197,1704897033042,-155.10911915,0.00027395,2]
[311076199,1704897033052,-677.45880314,0.00027395,2]
[311076200,1704897033062,-261.7761853,0.00027395,2]
[311076202,1704897033071,-2126.09470477,0.00027395,2]
[311076203,1704897033080,-154.8915759,0.00027395,2]
[311076204,1704897033090,-2654.43647122,0.00027396,2]
[311076205,1704897033099,-248.13366529,0.00027396,2]
[311076206,1704897033108,-500.0,0.00027397,2]
[311076207,1704897033117,-500.0,0.00027397,2]
[311076208,1704897033126,-500.0,0.00027397,2]
[311076209,1704897033136,-500.0,0.00027397,2]
[311076210,1704897033145,-500.0,0.00027397,2]
[311076211,1704897033154,-506.2982467,0.00027397,2]
[311076212,1704897033163,-500.0,0.00027397,2]
[311076213,1704897033173,-500.66775379,0.00027397,2]
[311076214,1704897033182,-501.29303316,0.00027397,2]
[311076215,1704897033191,-500.0,0.00027397,2]
[311076216,1704897033201,-501.83111774,0.00027397,2]
[311076217,1704897033210,-506.65770087,0.00027397,2]
[311076218,1704897033218,-500.0,0.00027397,2]
[311076219,1704897033227,-562.16150847,0.00027397,2]
[311076220,1704897033236,-524.12489659,0.00027397,2]
[311076221,1704897033245,-500.0,0.00027397,2]
[311076222,1704897033253,-503.43008667,0.00027397,2]
[311076223,1704897033262,-500.0,0.00027397,2]
[311076224,1704897033270,-501.1581429,0.00027397,2]
[311076225,1704897033278,-500.0,0.00027397,2]
[311076226,1704897033289,-501.39318664,0.00027397,2]
[311076227,1704897033298,-502.36378172,0.00027397,2]
[311076228,1704897033309,-500.0,0.00027397,2]
[311076229,1704897033318,-500.0,0.00027397,2]
[311076230,1704897033327,-500.0,0.00027397,2]
[311076231,1704897033336,-500.0,0.00027397,2]
[311076232,1704897033345,-503.17133488,0.00027397,2]
[311076233,1704897033354,-500.0,0.00027397,2]
[311076234,1704897033363,-500.0,0.00027397,2]
[311076235,1704897033372,-500.0,0.00027397,2]
[311076236,1704897033382,-500.0,0.00027397,2]
[311076237,1704897033391,-501.51100543,0.00027397,2]
[311076238,1704897033399,-500.6363967,0.00027397,2]
[311076239,1704897033408,-420.13288424,0.00027397,2]
[311076240,1704897033418,-500.0,0.00027397,2]
[311076241,1704897033427,-500.0,0.00027397,2]
[311076242,1704897033436,-419.34890934,0.00027397,2]
[311076243,1704897033446,-503.73609041,0.00027397,2]
[311076244,1704897033455,-500.0,0.00027397,2]
[311076245,1704897033464,-500.0,0.00027397,2]
[311076246,1704897033473,-500.0,0.00027397,2]
[311076247,1704897033482,-500.0,0.00027397,2]
[311076248,1704897033492,-500.0,0.00027397,2]
[311076249,1704897033501,-502.72071019,0.00027397,2]
[311076250,1704897033512,-1001.38259395,0.00027397,2]
[311076251,1704897033521,-500.0,0.00027397,2]
[311076252,1704897033530,-500.0,0.00027397,2]
[311076253,1704897033543,-500.0,0.00027397,2]
[311076254,1704897033554,-571.3599163,0.00027397,2]
[311076255,1704897033563,-500.0,0.00027397,2]
[311076256,1704897033572,-500.0,0.00027397,2]
[311076257,1704897033581,-383.88957127,0.00027397,2]
[311076258,1704897033591,-321.05582341,0.00027397,2]
[311076259,1704897033600,-503.18593563,0.00027397,2]
[311076260,1704897033609,-500.0,0.00027397,2]
[311076261,1704897033618,-211.07566614,0.00027397,2]
[311076262,1704897033628,-504.21942309,0.00027397,2]
[311076263,1704897033637,-282.4939913,0.00027397,2]
[311076264,1704897033646,-500.0,0.00027397,2]
[311076265,1704897033655,-500.0,0.00027397,2]
[311076266,1704897033665,-500.0,0.00027397,2]
[311076267,1704897033674,-502.5845982,0.00027397,2]
[311076268,1704897033684,-454.51255567,0.00027397,2]
[311076269,1704897033694,-527.53763568,0.00027397,2]
[311076270,1704897033703,-500.0,0.00027397,2]
[311076271,1704897033713,-631.82750431,0.00027397,2]
[311076272,1704897033723,-500.0,0.00027397,2]
[311076273,1704897033733,-500.0,0.00027397,2]
[311076274,1704897033742,-500.0,0.00027397,2]
[311076275,1704897033751,-500.0,0.00027397,2]
[311076276,1704897033761,-500.0,0.00027397,2]
[311076277,1704897033771,-500.0,0.00027397,2]
[311076278,1704897033780,-500.0,0.00027397,2]
[311076279,1704897033793,-500.0,0.00027397,2]
[311076280,1704897033803,-500.0,0.00027397,2]
[311076281,1704897033812,-500.0,0.00027397,2]
[311076282,1704897033822,-500.0,0.00027397,2]
[311076283,1704897033831,-500.0,0.00027397,2]
[311076284,1704897033840,-500.0,0.00027397,2]
[311076285,1704897033850,-600.0,0.00027397,2]
[311076286,1704897033859,-500.0,0.00027397,2]
[311076287,1704897033868,-500.0,0.00027397,2]
[311076288,1704897033878,-500.99470575,0.00027397,2]
[311076289,1704897033887,-500.0,0.00027397,2]
[311076290,1704897033897,-500.0,0.00027397,2]
[311076291,1704897033906,-500.0,0.00027397,2]
[311076292,1704897033916,-500.70351278,0.00027397,2]
[311076293,1704897033925,-500.0,0.00027397,2]
[311076294,1704897033934,-504.89947469,0.00027397,2]
[311076295,1704897033942,-500.0,0.00027397,2]
[311076296,1704897033951,-501.48944674,0.00027397,2]
[311076297,1704897033960,-500.0,0.00027397,2]
[311076298,1704897033969,-500.0,0.00027397,2]
[311076299,1704897033979,-500.0,0.00027397,2]
[311076300,1704897033988,-500.0,0.00027397,2]
[311076301,1704897033997,-500.0,0.00027397,2]
[311076302,1704897034006,-500.0,0.00027397,2]
[311076303,1704897034015,-43.6699089,0.00027397,2]
[311076304,1704897034029,-456.3300911,0.00027397,2]
[311076305,1704897034041,-500.0,0.00027397,2]
[311076306,1704897034049,-500.0,0.00027397,2]
[311076307,1704897034059,-500.0,0.00027397,2]
[311076308,1704897034068,-500.0,0.00027397,2]
[311076309,1704897034077,-500.0,0.00027397,2]
[311076310,1704897034086,-500.0,0.00027397,2]
[311076311,1704897034096,-500.0,0.00027397,2]
[311076312,1704897034105,-500.0,0.00027397,2]
[311076313,1704897034114,-500.0,0.00027397,2]
[311076314,1704897034124,-500.0,0.00027397,2]
[311076315,1704897034133,-500.0,0.00027397,2]
[311076316,1704897034143,-500.0,0.00027397,2]
[311076317,1704897034153,-500.0,0.00027397,2]
[311076318,1704897034162,-500.0,0.00027397,2]
[311076319,1704897034172,-500.0,0.00027397,2]
[311076320,1704897034181,-500.0,0.00027397,2]
[311076321,1704897034190,-500.0,0.00027397,2]
[311076322,1704897034199,-500.0,0.00027397,2]
[311076323,1704897034208,-534.45113852,0.00027397,2]
[311076324,1704897034217,-500.0,0.00027397,2]
[311076325,1704897034227,-500.0,0.00027397,2]
[311076326,1704897034236,-500.0,0.00027397,2]
[311076327,1704897034245,-500.0,0.00027397,2]
[311076328,1704897034254,-1000.0,0.00027397,2]
[311076329,1704897034263,-459.80757038,0.00027397,2]
[311076405,1704897038802,-40.19242962,0.00027397,2]
[311076407,1704897038812,-500.0,0.00027397,2]
[311076409,1704897038821,-503.09208755,0.00027397,2]
[311076411,1704897038831,-500.0,0.00027397,2]
[311076413,1704897038840,-504.9808936,0.00027397,2]
[311076415,1704897038849,-500.0,0.00027397,2]